bitfinex-derivatives/quotes_ETHF0:USTF0_20250831
["timestamp","ask_amount","ask_price","bid_price","bid_amount"]
[1756652128064,5.735213,4458.1,4458.0,4.81708296]
[1756652128364,0.226,4459.4,4458.1,0.2841]
[1756652128564,0.226,4459.4,4458.0,8.21650721]
[1756652128565,0.19,4459.4,4459.3,3.2078]
[1756652128770,0.19,4459.4,4459.3,3.4338]
[1756652130370,0.4816,4459.4,4459.3,3.4338]
[1756652131472,0.4816,4459.4,4459.3,3.9095]
[1756652132067,0.4816,4459.4,4459.3,3.4338]
[1756652136776,0.4816,4459.4,4459.3,3.7179]
[1756652136978,0.4816,4459.4,4459.3,3.9095]
[1756652140982,0.4816,4459.4,4459.3,3.2078]
[1756652141181,0.4816,4459.4,4459.3,3.4338]
[1756652141380,1.86488296,4459.4,4459.3,3.2078]
[1756652141580,1.86488296,4459.4,4459.3,3.4338]
[1756652143986,1.86488296,4459.4,4459.3,3.2078]
[1756652145582,1.86488296,4459.4,4459.3,3.3971]
[1756652145887,0.4816,4459.4,4459.3,3.7006]
[1756652147489,0.19,4459.4,4459.3,3.7006]
[1756652148092,0.4849,4459.6,4459.5,0.1893]
[1756652148388,0.4849,4459.6,4459.5,0.4928]
[1756652150391,5.738513,4459.6,4459.5,0.4928]
[1756652161099,0.2855,4459.5,4459.3,3.2078]
[1756652161302,0.4849,4459.4,4459.3,3.2078]
[1756652162595,5.86818296,4459.4,4459.3,3.2078]
[1756652162803,6.14569268,4459.4,4459.0,3.2078]
[1756652163002,1.86818296,4459.1,4459.0,3.2078]
[1756652163193,2.09418296,4459.1,4459.0,3.2078]
[1756652164700,0.1994,4458.6,4458.5,3.2078]
[1756652164898,1.86818296,4458.6,4458.5,3.2078]
[1756652165401,7.12179596,4458.6,4458.5,3.5113]
[1756652166203,5.738513,4458.6,4458.5,3.5113]
[1756652166599,5.738513,4458.6,4458.5,3.7006]
[1756652168200,5.253613,4458.6,4458.5,5.30988296]
[1756652177113,5.731913,4458.6,4458.5,3.9266]
[1756652177315,5.731913,4458.6,4458.5,3.7006]
[1756652177516,5.731913,4458.6,4458.5,3.9266]
[1756652183815,5.731913,4458.6,4458.5,3.7006]
[1756652184118,5.731913,4458.6,4458.5,3.4338]
[1756652185914,5.731913,4458.6,4458.5,3.7361]
[1756652186420,5.731913,4458.6,4458.5,3.9254]
[1756652196620,5.253613,4458.6,4458.5,5.30868296]
[1756652198426,5.720013,4458.6,4458.5,5.30868296]
[1756652200129,5.253613,4458.6,4458.5,5.30868296]
[1756652200822,5.534813,4458.6,4458.5,5.30868296]
[1756652201828,5.720013,4458.6,4458.5,5.30868296]
[1756652205230,5.253613,4458.6,4458.5,5.30868296]
[1756652207734,5.720013,4458.6,4458.5,5.08268296]
[1756652208134,5.720013,4458.6,4458.5,5.30868296]
[1756652209137,5.438813,4458.6,4458.5,5.30868296]
[1756652210039,5.720013,4458.6,4458.5,5.30868296]
[1756652210944,5.438813,4458.6,4458.5,5.30868296]
[1756652212543,5.438813,4458.6,4458.5,7.32496317]
[1756652213244,5.720013,4458.6,4458.5,5.52638021]
[1756652213541,5.720013,4458.6,4458.5,5.95348021]
[1756652217747,5.253613,4458.6,4458.5,5.95348021]
[1756652220045,5.534813,4458.6,4458.5,7.33676317]
[1756652221047,5.720013,4458.6,4458.5,7.33676317]
[1756652222448,5.720013,4458.6,4458.5,5.72748021]
[1756652222649,5.720013,4458.6,4458.5,5.95348021]
[1756652223040,5.720013,4458.6,4458.5,3.7361]
[1756652223245,5.720013,4458.6,4458.5,3.4338]
[1756652224555,5.720013,4458.6,4458.5,3.7269]
[1756652224746,5.720013,4458.6,4458.5,3.702]
[1756652224946,5.720013,4458.6,4458.5,3.928]
[1756652230551,5.720013,4458.6,4458.5,5.94428021]
[1756652244055,5.720013,4458.6,4458.5,5.22408021]
[1756652244260,7.55358597,4458.6,4458.5,2.777]
[1756652244857,7.32929596,4458.6,4458.5,2.777]
[1756652246056,11.27238597,4458.6,4458.0,0.226]
[1756652246257,1.38328296,4458.1,4457.8,0.226]
[1756652246461,1.60928296,4458.1,4457.8,0.226]
[1756652249668,1.60928296,4458.1,4457.7,3.2078]
[1756652249669,5.60928296,4458.1,4457.7,3.2078]
[1756652249862,1.38328296,4457.8,4457.7,3.2078]
[1756652250057,1.60928296,4457.8,4457.7,3.2078]
[1756652250362,10.86289596,4457.8,4457.2,3.2078]
[1756652250563,6.86289596,4457.8,4457.2,3.2078]
[1756652251463,1.38328296,4457.5,4457.2,3.2078]
[1756652251670,1.60928296,4457.5,4457.2,3.2078]
[1756652253569,1.60928296,4457.5,4456.8,0.226]
[1756652254771,0.1121,4457.4,4456.8,0.226]
[1756652255267,5.253613,4457.3,4456.8,0.226]
[1756652255471,0.226,4457.2,4456.9,0.3016]
[1756652256172,1.60928296,4457.2,4456.9,0.3016]
[1756652256772,1.60928296,4457.2,4456.7,0.1869]
[1756652256966,1.60928296,4457.2,4456.9,0.3016]
[1756652258463,5.253613,4457.3,4456.9,0.1869]
[1756652258663,0.226,4457.2,4457.1,0.2008]
[1756652258867,0.226,4457.2,4457.1,0.4922]
[1756652260176,0.226,4457.2,4457.1,0.2914]
[1756652260375,0.226,4457.2,4457.1,0.4922]
[1756652264371,0.226,4457.2,4456.7,0.2914]
[1756652264569,0.226,4457.2,4456.6,3.6346]
[1756652264767,5.253613,4457.1,4456.6,3.6346]
[1756652264969,5.253613,4457.1,4456.8,0.2914]
[1756652265178,6.63689596,4457.1,4456.8,0.2914]
[1756652265778,6.63689596,4457.1,4456.6,3.2078]
[1756652266076,6.63689596,4457.1,4456.7,0.2914]
[1756652266677,1.38328296,4456.8,4456.7,0.2914]
[1756652266871,1.60928296,4456.8,4456.6,3.4992]
[1756652267578,0.226,4456.8,4456.6,3.4992]
[1756652267778,0.226,4456.8,4456.7,0.2914]
[1756652270176,0.226,4456.8,4456.6,3.2078]
[1756652270378,9.703993,4456.8,4456.1,0.2914]
[1756652270579,1.38328296,4456.4,4456.0,3.4086]
[1756652270784,0.226,4456.3,4456.0,3.4086]
[1756652271078,0.226,4456.3,4456.1,0.2914]
[1756652271583,0.226,4456.3,4456.2,0.2914]
[1756652272084,1.38328296,4456.6,4456.3,0.2914]
[1756652272284,1.38328296,4456.6,4456.5,0.2914]
[1756652272483,1.60928296,4456.6,4456.1,0.2914]
[1756652272783,1.60928296,4456.6,4456.0,3.4086]
[1756652273082,1.60928296,4456.6,4456.0,3.2078]
[1756652273277,1.60928296,4456.6,4456.2,0.4922]
[1756652273481,1.60928296,4456.6,4456.0,3.2078]
[1756652273682,1.60928296,4456.6,4456.1,0.2008]
[1756652273980,1.60928296,4456.6,4456.1,0.2914]
[1756652274479,1.38328296,4456.3,4456.2,0.4922]
[1756652274679,1.60928296,4456.3,4456.2,0.4922]
[1756652275074,1.60928296,4456.3,4456.0,3.4992]
[1756652275271,6.86289596,4456.3,4456.0,3.4992]
[1756652275673,6.86289596,4456.3,4456.1,0.2914]
[1756652277083,6.86289596,4456.3,4456.0,3.4086]
[1756652277285,6.86289596,4456.3,4456.1,0.2914]
[1756652278683,6.86289596,4456.3,4456.0,3.2078]
[1756652278883,6.86289596,4456.3,4456.1,0.2914]
[1756652279085,6.86289596,4456.3,4456.0,3.4086]
[1756652279279,6.86289596,4456.3,4456.1,0.2914]
[1756652280181,5.253613,4456.3,4456.1,0.2008]
[1756652280386,5.253613,4456.3,4456.2,0.4922]
[1756652280582,5.479613,4456.3,4456.2,0.4922]
[1756652281583,5.253613,4456.3,4456.2,0.4922]
[1756652281782,5.479613,4456.3,4456.2,0.4922]
[1756652281984,5.253613,4456.3,4456.2,0.4922]
[1756652282183,5.479613,4456.3,4456.2,0.4922]
[1756652283387,5.253613,4456.3,4456.2,0.4922]
[1756652283789,5.479613,4456.3,4456.2,0.4922]
[1756652285988,5.253613,4456.3,4456.2,4.4922]
[1756652292390,5.253613,4456.3,4456.2,5.87548296]
[1756652293495,5.253613,4456.3,4456.2,6.10148296]
[1756652293696,5.253613,4456.3,4456.2,4.7182]
[1756652300405,5.253613,4456.3,4456.2,0.7182]
[1756652301111,5.253613,4456.3,4456.2,2.10148296]
[1756652302103,5.253613,4456.3,4456.2,8.11776317]
[1756652302305,1e-08,4456.3,4456.2,6.10148296]
[1756652302604,0.4823,4457.7,4457.6,0.1995]
[1756652302800,0.1902,4457.7,4457.6,0.4935]
[1756652303004,0.4823,4457.7,4457.6,0.4935]
[1756652307514,0.1902,4457.7,4457.6,0.4935]
[1756652308717,0.4823,4457.7,4457.6,0.4935]
[1756652308916,0.2921,4458.0,4457.6,0.4935]
[1756652309213,0.4823,4458.0,4457.9,3.7013]
[1756652309515,0.4823,4458.0,4457.9,3.9273]
[1756652311016,5.253613,4458.0,4457.9,3.6333]
[1756652311215,5.253613,4458.0,4457.9,3.9273]
[1756652313517,5.735913,4458.0,4457.9,3.9273]
[1756652317623,5.253613,4458.0,4457.9,3.9273]
[1756652318122,5.528413,4458.0,4457.9,3.9273]
[1756652320320,5.717413,4458.0,4457.9,3.9273]
[1756652323121,5.253613,4458.0,4457.9,3.9273]
[1756652323328,5.253613,4458.0,4457.9,7.9273]
[1756652323527,5.253613,4458.0,4457.9,8.15162]
[1756652323717,5.253613,4458.0,4457.9,7.9273]
[1756652324720,5.253613,4458.0,4457.9,9.31058296]
[1756652325027,5.253613,4458.0,4457.9,7.9273]
[1756652327523,5.253613,4458.0,4457.9,9.31058296]
[1756652327730,5.253613,4458.0,4457.9,7.9273]
[1756652328231,5.253613,4458.0,4457.9,9.31058296]
[1756652328729,5.253613,4458.0,4457.9,7.9273]
[1756652331827,0.226,4460.1,4458.0,0.2744]
[1756652332033,0.4638,4459.9,4459.8,3.2078]
[1756652332232,0.4638,4459.9,4459.8,3.4338]
[1756652340239,0.4638,4459.9,4459.8,5.29428296]
[1756652340738,0.2748,4461.2,4459.9,0.2744]
[1756652340936,0.4638,4460.8,4460.7,5.06828296]
[1756652341133,0.4638,4460.8,4460.7,5.29428296]
[1756652342641,5.717413,4460.8,4460.7,5.29428296]
[1756652343139,5.717413,4460.8,4460.7,3.911]
[1756652346043,5.717413,4460.8,4460.7,5.29428296]
[1756652348846,5.253613,4460.8,4460.7,5.29428296]
[1756652350043,5.740713,4460.8,4460.7,5.29428296]
[1756652351345,5.253613,4460.8,4460.7,5.29428296]
[1756652355542,3.2078,4462.8,4460.8,0.3018]
[1756652355744,3.2078,4462.8,4462.2,3.2078]
[1756652355745,0.4871,4462.3,4462.2,3.2078]
[1756652355946,0.4871,4462.3,4462.2,3.4328]
[1756652356646,0.4871,4462.3,4462.2,3.7346]
[1756652356842,0.4871,4462.3,4462.2,3.4328]
[1756652358645,5.740713,4462.3,4462.2,3.4328]
[1756652359252,11.34899596,4462.3,4461.8,0.225]
[1756652359444,7.34899596,4462.3,4461.7,0.225]
[1756652359846,5.965713,4462.3,4461.7,0.225]
[1756652360048,7.34899596,4462.3,4461.7,0.225]
[1756652360952,1.38328296,4462.2,4461.7,0.225]
[1756652361153,0.4871,4461.5,4461.4,3.2078]
[1756652361446,0.4871,4461.5,4461.4,3.4328]
[1756652365250,5.740713,4461.5,4461.4,3.4328]
[1756652366347,5.740713,4461.5,4461.4,3.2078]
[1756652367947,7.12399596,4461.5,4461.0,0.3018]
[1756652368152,7.12399596,4461.5,4461.1,0.225]
[1756652371358,6.83349596,4461.5,4460.9,3.2078]
[1756652371661,0.4871,4461.0,4460.9,3.2078]
[1756652371858,0.4871,4461.0,4460.9,3.4328]
[1756652372559,0.4871,4461.0,4460.9,3.2078]
[1756652373563,0.1966,4460.5,4460.4,3.5096]
[1756652373760,0.4871,4460.5,4460.4,3.7346]
[1756652374359,0.4871,4460.5,4460.4,3.4328]
[1756652375060,0.4871,4460.5,4460.4,3.2078]
[1756652375259,5.740713,4460.5,4460.4,3.4328]
[1756652375463,5.740713,4460.5,4460.4,3.9265]
[1756652379464,5.450213,4460.5,4460.4,3.9265]
[1756652379962,5.749513,4460.5,4460.4,3.9265]
[1756652390365,5.253613,4460.5,4460.4,3.9265]
[1756652390570,5.253613,4460.5,4460.4,5.30978296]
[1756652394266,5.552913,4460.5,4460.4,5.30978296]
[1756652396073,5.253613,4460.5,4460.4,5.30978296]
[1756652397274,5.552913,4460.5,4460.4,5.30978296]
[1756652397470,5.743413,4460.5,4460.4,5.30978296]
[1756652397974,5.253613,4460.5,4460.4,5.30978296]
[1756652399075,5.552913,4460.5,4460.4,5.30978296]
[1756652399770,5.552913,4460.5,4460.4,2.10198296]
[1756652399975,5.552913,4460.5,4460.4,5.30978296]
[1756652400374,5.253613,4460.5,4460.4,5.30978296]
[1756652400577,5.743413,4460.5,4460.4,5.30978296]
[1756652401870,5.743413,4460.5,4460.4,3.2078]
[1756652402072,5.968413,4460.5,4460.4,3.2078]
[1756652402668,5.669113,4460.5,4459.9,3.2078]
[1756652402871,0.1905,4460.1,4460.0,0.225]
[1756652403075,0.4898,4460.1,4460.0,0.225]
[1756652403578,0.4898,4460.0,4459.9,3.2078]
[1756652403777,0.4898,4460.0,4459.9,3.4328]
[1756652404171,0.4898,4460.0,4459.9,3.2078]
[1756652404372,0.4898,4460.0,4459.9,3.4328]
[1756652404574,0.4898,4460.0,4459.9,3.2078]
[1756652404870,0.4898,4460.0,4459.2,0.2908]
[1756652404871,0.4898,4459.3,4459.2,3.2078]
[1756652405074,0.4898,4459.3,4459.2,3.4328]
[1756652405270,5.743413,4459.3,4459.2,3.4328]
[1756652405778,5.743413,4459.3,4459.2,3.917]
[1756652405978,5.743413,4459.3,4459.2,3.692]
[1756652406176,5.444113,4459.3,4459.2,3.917]
[1756652406471,5.253613,4459.3,4459.2,7.917]
[1756652407676,0.2993,4460.3,4459.2,7.85045]
[1756652407877,0.5011,4460.3,4460.2,3.2078]
[1756652408076,0.5011,4460.3,4460.2,3.4328]
[1756652409270,0.2993,4460.3,4460.2,3.4328]
[1756652410178,0.5011,4460.3,4460.2,3.4328]
[1756652410882,5.754713,4460.3,4460.2,3.4328]
[1756652411476,5.552913,4460.3,4460.2,3.4328]
[1756652411674,5.253613,4460.3,4460.2,3.4328]
[1756652412578,5.534313,4460.3,4460.2,3.4328]
[1756652412979,5.736113,4460.3,4460.2,3.4328]
[1756652413378,7.11939596,4460.3,4460.2,3.2078]
[1756652413578,5.736113,4460.3,4460.2,3.2078]
[1756652415682,5.736113,4460.3,4460.2,3.4328]
[1756652416887,6.236113,4460.3,4460.2,3.4328]
[1756652422089,5.753613,4460.3,4460.2,4.81608296]
[1756652422293,6.034313,4460.3,4460.2,4.81608296]
[1756652422789,5.753613,4460.3,4460.2,4.81608296]
[1756652423187,6.034313,4460.3,4460.2,4.81608296]
[1756652423793,5.753613,4460.3,4460.2,4.81608296]
[1756652426509,5.753613,4460.3,4460.2,3.4328]
[1756652426803,5.753613,4460.3,4460.2,4.81608296]
[1756652427106,5.753613,4460.3,4460.2,8.81608296]
[1756652427699,5.753613,4460.3,4460.2,10.60169414]
[1756652428008,6.236113,4460.3,4460.2,4.81608296]
[1756652430098,5.753613,4460.3,4460.2,4.81608296]
[1756652430300,6.034313,4460.3,4460.2,4.81608296]
[1756652431509,6.236113,4460.3,4460.2,4.59108296]
[1756652431709,6.236113,4460.3,4460.2,4.81608296]
[1756652432207,5.753613,4460.3,4460.2,4.81608296]
[1756652432418,5.753613,4460.3,4460.2,3.4328]
[1756652433107,6.236113,4460.3,4460.2,3.4328]
[1756652434611,6.034313,4460.3,4460.2,3.4328]
[1756652434921,5.753613,4460.3,4460.2,3.4328]
[1756652435405,0.2807,4461.1,4460.2,10.82669414]
[1756652435605,0.4825,4461.1,4461.0,3.2078]
[1756652435812,0.4825,4461.1,4461.0,3.4328]
[1756652436712,0.121,4462.4,4461.0,4.81608296]
[1756652437008,0.4825,4462.2,4462.1,3.2078]
[1756652437214,0.4825,4462.2,4462.1,3.4328]
[1756652441609,0.4825,4462.2,4462.1,3.2078]
[1756652441809,0.4825,4462.2,4462.1,3.4338]
[1756652445813,3.2078,4463.5,4462.1,3.4338]
[1756652446015,0.4782,4462.9,4462.8,3.2078]
[1756652446216,0.4782,4462.9,4462.8,3.4328]
[1756652446609,4.4782,4462.9,4462.8,3.4328]
[1756652446810,4.4782,4462.9,4462.8,0.225]
[1756652452319,0.1949,4462.7,4462.6,0.225]
[1756652452519,0.4782,4462.7,4462.6,0.225]
[1756652453321,0.1949,4462.4,4462.3,3.5051]
[1756652453517,0.4782,4462.4,4462.3,3.9213]
[1756652459220,0.4782,4462.4,4462.3,3.2078]
[1756652459425,0.1949,4461.9,4461.8,3.2078]
[1756652459726,0.4782,4461.9,4461.8,3.2078]
[1756652459922,0.4782,4461.9,4461.8,3.4328]
[1756652460923,0.4782,4461.9,4461.8,3.2078]
[1756652465227,0.4782,4462.4,4462.3,0.1912]
[1756652465428,0.4782,4462.4,4462.3,3.37609117]
[1756652466722,0.2833,4462.4,4462.3,3.37609117]
[1756652468329,0.4782,4462.4,4462.3,3.37609117]
[1756652469236,0.4864,4463.0,4462.9,0.1906]
[1756652469435,0.4864,4463.0,4462.9,0.3314]
[1756652471630,5.740013,4463.0,4462.9,0.3314]
[1756652477345,5.740013,4463.0,4462.9,0.5564]
[1756652477946,5.253613,4463.0,4462.9,5.93968296]
[1756652484845,5.253613,4463.0,4462.9,1.93968296]
[1756652485043,5.555713,4463.0,4462.9,1.93968296]
[1756652485645,5.253613,4463.0,4462.9,1.93968296]
[1756652487637,0.3021,4462.9,4462.8,3.2078]
[1756652487844,0.4864,4462.9,4462.8,3.4338]
[1756652488243,0.4864,4462.9,4462.8,3.6244]
[1756652488545,5.253613,4463.0,4462.9,0.331]
[1756652488850,5.253613,4463.0,4462.9,1.71428296]
[1756652489238,0.226,4463.9,4462.9,1.71428296]
[1756652489239,0.3021,4463.9,4462.9,5.57388296]
[1756652489445,0.4864,4463.9,4463.8,4.92208296]
[1756652489647,0.4864,4463.9,4463.8,5.00768296]
[1756652489847,0.4864,4463.9,4463.8,4.81708296]
[1756652490852,0.4864,4463.9,4463.8,4.59108296]
[1756652491050,0.4864,4463.9,4463.8,5.14808296]
[1756652492254,0.4864,4463.9,4463.8,4.59108296]
[1756652492456,0.4864,4463.9,4463.8,4.81708296]
[1756652493555,0.4864,4463.9,4463.8,5.14808296]
[1756652494157,0.4864,4463.9,4463.8,5.00768296]
[1756652494553,0.4864,4463.9,4463.8,5.14808296]
[1756652494757,0.3021,4463.9,4463.8,5.14808296]
[1756652495259,0.3021,4464.8,4463.8,5.00768296]
[1756652495459,0.4864,4464.2,4464.1,0.331]
[1756652495654,0.4864,4464.2,4464.1,0.557]
[1756652496954,1.38328296,4464.7,4463.8,3.3482]
[1756652497155,0.4864,4463.9,4463.8,3.2078]
[1756652497353,0.4864,4463.9,4463.7,0.226]
[1756652498652,0.1843,4463.9,4463.2,3.2078]
[1756652498854,0.2785,4463.8,4463.3,0.226]
[1756652499054,0.2785,4463.8,4463.2,3.2078]
[1756652499055,0.2785,4463.3,4463.2,3.2078]
[1756652499256,0.4757,4463.3,4463.2,3.4338]
[1756652500362,5.729313,4463.3,4463.2,3.4338]
[1756652508569,5.729313,4463.3,4463.2,3.2078]
[1756652508768,5.729313,4463.3,4463.2,3.4338]
[1756652509364,5.729313,4463.3,4463.2,3.7736]
[1756652515673,5.729313,4463.3,4463.2,3.4338]
[1756652516069,5.729313,4463.3,4463.2,3.2078]
[1756652516270,5.729313,4463.3,4463.2,3.4338]
[1756652516763,0.1972,4462.7,4462.1,3.2078]
[1756652516964,0.4757,4462.3,4462.2,0.226]
[1756652517462,0.2785,4462.3,4462.2,0.5658]
[1756652517661,0.4757,4462.3,4462.2,0.5658]
[1756652518171,0.4757,4462.3,4462.2,0.3398]
[1756652518374,0.4757,4462.3,4462.2,0.5658]
[1756652520473,5.729313,4462.3,4462.2,0.226]
[1756652520874,5.450813,4462.3,4462.1,3.2078]
[1756652521076,1.85898296,4462.2,4462.1,3.2078]
[1756652521371,0.4757,4462.2,4462.1,3.2078]
[1756652521873,5.532113,4462.3,4462.2,0.1413]
[1756652522069,3.2078,4464.4,4462.2,0.1985]
[1756652522370,0.2785,4464.2,4464.0,3.2078]
[1756652522575,0.4757,4463.4,4463.3,3.2078]
[1756652525874,0.4757,4464.0,4463.3,3.2078]
[1756652526078,0.4757,4464.0,4463.4,0.227]
[1756652526479,0.4757,4464.4,4463.8,1.38328296]
[1756652526779,0.2785,4464.3,4463.9,0.227]
[1756652526978,0.2785,4464.2,4463.9,3.4348]
[1756652527670,0.2785,4464.2,4464.1,0.0125]
[1756652527875,0.2785,4464.2,4464.1,0.2473]
[1756652528579,0.4718,4464.2,4464.1,0.2473]
[1756652529378,0.2875,4465.0,4464.1,0.2395]
[1756652529571,0.2875,4464.8,4464.2,0.0078]
[1756652529780,0.4808,4464.4,4464.3,0.2473]
[1756652529980,0.4808,4464.4,4464.3,0.2395]
[1756652530377,0.4808,4464.4,4464.3,0.2473]
[1756652530573,0.4808,4464.4,4464.3,0.2395]
[1756652530778,0.4808,4464.4,4464.3,0.2473]
[1756652531480,0.4808,4464.4,4464.3,0.2395]
[1756652532287,0.4808,4464.4,4464.3,0.2473]
[1756652536789,0.4808,4464.4,4464.3,0.227]
[1756652537583,0.4808,4464.4,4464.3,0.2473]
[1756652537783,0.2875,4465.1,4464.4,0.0078]
[1756652537993,0.2875,4465.3,4464.6,0.0078]
[1756652538287,0.4808,4464.8,4464.7,0.2473]
[1756652539791,5.71988601,4464.8,4464.7,0.2473]
[1756652542000,5.23908601,4464.8,4464.7,0.2473]
[1756652542498,5.23908601,4464.8,4464.7,4.47127999]
[1756652542699,5.23908601,4464.8,4464.7,4.2473]
[1756652542895,5.23908601,4464.8,4464.7,4.47127999]
[1756652543103,0.44810035,4464.8,4464.7,4.47127999]
[1756652543898,0.44810035,4464.8,4464.7,8.17127999]
[1756652544692,0.44810035,4464.8,4464.7,7.9473]
[1756652545300,0.127,4467.0,4464.7,7.9473]
[1756652545301,0.2875,4465.6,4464.7,8.16347999]
[1756652545498,0.2875,4465.6,4465.5,4.59108296]
[1756652545699,0.2875,4465.6,4465.5,4.81808296]
[1756652546201,0.4808,4465.6,4465.5,4.81808296]
[1756652546894,0.4808,4465.6,4465.5,3.4348]
[1756652547094,0.4808,4465.6,4465.5,4.81808296]
[1756652547302,0.2875,4465.6,4465.5,4.81808296]
[1756652548199,0.4808,4465.6,4465.5,4.81808296]
[1756652548402,0.2875,4465.6,4465.5,4.81808296]
[1756652548696,1.38328296,4467.0,4465.5,4.81808296]
[1756652548891,0.4808,4466.1,4466.0,4.59108296]
[1756652549091,0.4808,4466.1,4466.0,4.81808296]
[1756652550594,0.4808,4466.1,4466.0,3.4348]
[1756652551599,3.9348,4467.4,4466.0,3.4348]
[1756652551600,0.2875,4467.3,4466.0,3.4348]
[1756652551799,0.4808,4466.4,4466.3,1.38328296]
[1756652552105,0.1933,4466.1,4466.0,3.2078]
[1756652552304,0.4808,4466.1,4466.0,3.4358]
[1756652552504,1.38328296,4467.2,4466.0,3.4358]
[1756652552705,0.4808,4466.3,4466.2,1.38328296]
[1756652552900,0.4808,4466.3,4466.2,1.61128296]
[1756652557809,0.5281,4467.3,4466.2,5.61128296]
[1756652558011,0.5281,4467.3,4467.2,4.59108296]
[1756652558209,0.5281,4467.3,4467.2,4.82008296]
[1756652558412,0.5281,4467.3,4467.2,3.4368]
[1756652558814,0.3125,4467.3,4467.2,4.82008296]
[1756652559115,0.5,4467.4,4467.2,4.82008296]
[1756652559917,0.3125,4468.9,4467.3,4.0]
[1756652560111,3.2078,4469.0,4467.9,3.2078]
[1756652560112,0.5281,4468.0,4467.9,3.2078]
[1756652560412,0.5281,4468.0,4467.9,3.4378]
[1756652561203,0.5281,4468.0,4467.9,3.2078]
[1756652561405,0.5281,4468.0,4467.9,3.4378]
[1756652561614,3.2078,4469.5,4467.9,4.82108296]
[1756652561816,0.5281,4468.6,4468.5,3.2078]
[1756652562117,0.5281,4468.6,4468.5,4.82208296]
[1756652562414,0.3125,4468.6,4468.5,4.82208296]
[1756652562615,0.5281,4468.6,4468.5,4.82208296]
[1756652563518,0.331,4470.2,4468.5,4.82208296]
[1756652563519,3.7359,4470.1,4468.5,8.82208296]
[1756652563714,3.2078,4470.1,4469.4,1.38328296]
[1756652563910,0.2156,4469.6,4469.2,3.2078]
[1756652564110,0.3125,4470.0,4469.2,3.2078]
[1756652564418,0.5281,4469.4,4469.3,0.231]
[1756652564719,0.2156,4469.4,4469.3,0.231]
[1756652564918,0.5281,4469.4,4469.3,0.231]
[1756652565312,0.5281,4469.3,4469.2,4.59108296]
[1756652565614,0.3125,4470.0,4469.2,4.82208296]
[1756652565917,0.5281,4469.3,4469.2,3.2078]
[1756652566110,0.5281,4469.3,4469.2,3.4388]
[1756652566310,0.5281,4469.3,4469.2,3.2078]
[1756652566516,0.5281,4469.3,4469.2,3.4388]
[1756652566717,0.5281,4469.3,4469.2,3.2078]
[1756652566918,0.5281,4469.3,4469.2,3.4388]
[1756652567310,0.3125,4469.3,4469.2,3.4388]
[1756652567516,0.5281,4469.3,4469.2,3.4388]
[1756652567717,0.3125,4470.0,4469.2,8.59108296]
[1756652567915,0.3125,4470.0,4469.3,0.231]
[1756652568121,0.3125,4470.0,4469.2,4.59108296]
[1756652568419,0.5281,4470.0,4469.9,3.2078]
[1756652568617,0.5281,4470.0,4469.9,3.4398]
[1756652568917,0.5281,4470.0,4469.9,0.232]
[1756652569121,0.2156,4470.0,4469.9,0.232]
[1756652569709,0.2156,4470.0,4469.3,3.2078]
[1756652569916,0.1,4470.2,4469.3,4.59108296]
[1756652570218,0.5281,4469.9,4469.8,1.38328296]
[1756652570417,0.5281,4469.9,4469.8,0.232]
[1756652571622,0.1,4470.2,4469.8,4.82308296]
[1756652571822,0.3125,4470.1,4469.8,4.82308296]
[1756652572224,0.5281,4470.1,4469.8,4.82308296]
[1756652572924,0.3125,4470.0,4469.8,4.82308296]
[1756652573313,0.5281,4469.9,4469.8,3.2078]
[1756652573618,0.5281,4469.9,4469.8,3.4408]
[1756652574215,0.1,4470.2,4469.8,3.4408]
[1756652574422,0.1,4470.2,4470.1,1.38328296]
[1756652574723,0.1,4470.2,4470.1,0.233]
[1756652575324,0.1,4470.2,4470.1,1.61728296]
[1756652576023,0.3125,4471.5,4470.1,5.61728296]
[1756652576323,1.38328296,4472.2,4470.7,3.2078]
[1756652576520,0.5281,4470.9,4470.8,1.61728296]
[1756652576922,0.3125,4470.9,4470.8,0.234]
[1756652577122,0.5281,4470.9,4470.8,1.61728296]
[1756652577320,0.5281,4470.8,4470.7,3.2078]
[1756652577521,1.38328296,4472.2,4470.7,4.82508296]
[1756652577720,0.5281,4471.1,4471.0,1.38328296]
[1756652577926,0.5281,4471.1,4471.0,0.234]
[1756652578128,0.5281,4471.1,4471.0,1.61728296]
[1756652578830,0.2156,4471.1,4471.0,0.234]
[1756652579529,0.5281,4471.1,4471.0,1.61728296]
[1756652579928,0.5281,4471.1,4471.0,0.234]
[1756652581926,0.5281,4470.8,4470.7,3.2078]
[1756652583339,0.5281,4470.8,4470.7,4.59108296]
[1756652583526,0.5281,4470.8,4470.7,7.20854196]
[1756652583929,0.5281,4470.8,4470.7,5.825259]
[1756652584534,4.5281,4470.8,4470.7,5.825259]
[1756652584729,4.5281,4470.8,4470.7,2.617459]
[1756652585739,0.5281,4470.8,4470.7,2.617459]
[1756652586132,0.5281,4470.8,4470.7,2.851459]
[1756652586843,0.3125,4471.8,4470.7,4.23474196]
[1756652587136,0.5281,4471.4,4471.3,1.38328296]
[1756652587431,0.5281,4471.4,4471.3,1.61728296]
[1756652587834,0.5281,4471.4,4471.3,0.234]
[1756652588936,0.1115,4471.6,4471.3,0.234]
[1756652589133,0.5004,4471.5,4471.3,1.61728296]
[1756652589435,0.1115,4471.6,4471.3,1.61728296]
[1756652590334,0.1115,4471.6,4471.4,2.617459]
[1756652590536,0.1115,4471.6,4471.5,0.234]
[1756652590939,0.1115,4471.6,4471.5,4.45764]
[1756652591834,0.1115,4471.6,4471.5,4.234]
[1756652593240,0.5004,4473.1,4471.5,5.61728296]